fUST/lending_fUST_20241017
["ID","MTS","AMOUNT","RATE_DAILY","PERIOD"]
[340384437,1729156988512,-500.0,0.00041917,30]
[340384438,1729156988546,-500.0,0.00041917,60]
[340384439,1729156988581,-979.17,0.00041917,60]
[340384440,1729156988615,-500.0,0.00041917,60]
[340384441,1729156988652,-1036.02,0.00041917,60]
[340384442,1729156988687,-500.0,0.00041917,60]
[340384443,1729156988722,-500.0,0.00041917,60]
[340384444,1729156988757,-500.0,0.00041917,60]
[340384445,1729156988792,-500.0,0.00041917,60]
[340384446,1729156988826,-500.0,0.00041917,60]
[340384447,1729156988860,-500.0,0.00041917,60]
[340384448,1729156988896,-500.0,0.00041917,60]
[340384449,1729156988932,-500.0,0.00041917,60]
[340384450,1729156988966,-500.0,0.00041917,60]
[340384451,1729156989001,-500.0,0.00041917,60]
[340384452,1729156989036,-500.0,0.00041917,60]
[340384453,1729156989077,-783.88,0.00041917,60]
[340384454,1729156989113,-500.0,0.00041917,60]
[340384455,1729156989149,-1103.88,0.00041917,60]
[340384456,1729156989192,-500.0,0.00041917,60]
[340384457,1729156989230,-500.0,0.00041917,60]
[340384458,1729156989266,-500.0,0.00041917,60]
[340384459,1729156989301,-500.0,0.00041917,60]
[340384460,1729156989339,-188.0,0.00041917,60]
[340384461,1729156989375,-206.21131799,0.00041917,60]
[340384462,1729156989409,-500.0,0.00041917,60]
[340384463,1729156989445,-500.0,0.00041917,60]
[340384464,1729156989479,-890.34,0.00041917,60]
[340384465,1729156989514,-500.0,0.00041917,60]
[340384466,1729156989548,-500.0,0.00041917,60]
[340384467,1729156989582,-508.20465306,0.00041917,60]
[340384468,1729156989617,-500.0,0.00041917,60]
[340384469,1729156989651,-630.62,0.00041917,60]
[340384470,1729156989686,-665.23,0.00041917,60]
[340384471,1729156989725,-500.0,0.00041917,60]
[340384472,1729156989759,-269.01580582,0.00041917,60]
[340384473,1729156989796,-1089.03,0.00041917,60]
[340384474,1729156989832,-500.0,0.00041917,60]
[340384475,1729156989868,-985.62,0.00041917,60]
[340384476,1729156989906,-566.05,0.00041917,60]
[340384477,1729156989943,-500.0,0.00041917,60]
[340384478,1729156989979,-500.0,0.00041917,60]
[340384479,1729156990014,-500.0,0.00041917,60]
[340384480,1729156990049,-500.0,0.00041917,60]
[340384481,1729156990085,-814.54,0.00041917,60]
[340384482,1729156990120,-575.83,0.00041917,60]
[340384483,1729156990155,-500.0,0.00041917,60]
[340384484,1729156990192,-500.0,0.00041917,60]
[340384485,1729156990230,-500.0,0.00041917,60]
[340384486,1729156990266,-604.72368521,0.00041917,60]
[340384487,1729156990300,-1433.2,0.00041917,60]
[340384488,1729156990335,-500.0,0.00041917,60]
[340384489,1729156990370,-500.0,0.00041917,60]
[340384490,1729156990406,-500.0,0.00041917,60]
[340384491,1729156990440,-542.84,0.00041917,60]
[340384492,1729156990474,-500.0,0.00041917,60]
[340384493,1729156990508,-500.0,0.00041917,60]
[340384494,1729156990542,-500.0,0.00041917,60]
[340384495,1729156990576,-500.0,0.00041917,60]
[340384496,1729156990611,-500.0,0.00041917,60]
[340384497,1729156990646,-2442.96,0.00041917,60]
[340384498,1729156990683,-500.0,0.00041917,60]
[340384499,1729156990719,-500.0,0.00041917,60]
[340384500,1729156990752,-500.0,0.00041917,60]
[340384501,1729156990788,-500.0,0.00041917,60]
[340384502,1729156990822,-500.0,0.00041917,60]
[340384503,1729156990856,-500.0,0.00041917,60]
[340384504,1729156991087,-350.23047312,0.00041917,60]
[340384505,1729156991124,-1194.49,0.00041917,60]
[340384506,1729156991163,-500.0,0.00041917,60]
[340384507,1729156991198,-2561.43,0.00041917,60]
[340384508,1729156991233,-500.0,0.00041917,60]
[340384509,1729156991267,-827.35,0.00041917,60]
[340384510,1729156991302,-1082.7,0.00041917,60]
[340384511,1729156991337,-500.0,0.00041917,60]
[340384512,1729156991369,-505.15166711,0.00041917,60]
[340384513,1729156991403,-760.91,0.00041917,60]
[340384514,1729156991436,-500.0,0.00041917,60]
[340384515,1729156991469,-500.0,0.00041917,60]
[340384516,1729156991502,-500.0,0.00041917,60]
[340384517,1729156991535,-500.0,0.00041917,60]
[340384518,1729156991569,-500.0,0.00041917,60]
[340384519,1729156991604,-500.0,0.00041917,60]
[340384520,1729156991638,-500.0,0.00041917,60]
[340384521,1729156991671,-500.0,0.00041917,60]
[340384522,1729156991704,-281.45484264,0.00041917,60]
[340384523,1729156991739,-500.0,0.00041917,60]
[340384524,1729156991773,-525.4813889,0.00041917,60]
[340384525,1729156991810,-1109.25,0.00041917,60]
[340384526,1729156991847,-500.0,0.00041917,60]
[340384527,1729156991885,-500.0,0.00041917,60]
[340384528,1729156991924,-500.0,0.00041917,60]
[340384529,1729156991962,-2341.58,0.00041917,30]
[340384530,1729156991998,-5116.54,0.00041917,60]
[340384531,1729156992034,-510.83411452,0.00041917,60]
[340384532,1729156992074,-500.0,0.00041917,60]
[340384533,1729156992109,-500.0,0.00041917,60]
[340384534,1729156992146,-935.2,0.00041917,60]
[340384535,1729156992184,-636.26543644,0.00041917,60]
[340384536,1729156992222,-500.0,0.00041917,60]
[340384537,1729156992258,-500.0,0.00041917,60]
[340384538,1729156992293,-500.0,0.00041917,60]
[340384539,1729156992333,-500.0,0.00041917,60]
[340384540,1729156992369,-866.24,0.00041917,60]
[340384541,1729156992405,-515.37494956,0.00041917,60]
[340384542,1729156992441,-500.0,0.00041917,60]
[340384543,1729156992476,-1240.33,0.00041917,60]
[340384544,1729156992511,-500.0,0.00041917,60]
[340384545,1729156992548,-500.0,0.00041917,60]
[340384546,1729156992583,-500.0,0.00041917,30]
[340384547,1729156992617,-500.0,0.00041917,60]
[340384548,1729156992651,-500.0,0.00041917,60]
[340384549,1729156992686,-901.88,0.00041917,60]
[340384550,1729156992721,-500.0,0.00041917,60]
[340384551,1729156992755,-500.0,0.00041917,60]
[340384552,1729156992789,-494.40469038,0.00041917,60]
[340384553,1729156992825,-500.0,0.00041917,60]
[340384554,1729156992862,-500.0,0.00041917,60]
[340384555,1729156992897,-500.0,0.00041917,60]
[340384556,1729156992934,-513.04732877,0.00041917,60]
[340384557,1729156992970,-500.0,0.00041917,60]
[340384558,1729156993006,-1035.23,0.00041917,60]
[340384559,1729156993042,-500.0,0.00041917,60]
[340384560,1729156993077,-657.41,0.00041917,60]
[340384561,1729156993112,-500.0,0.00041917,60]
[340384562,1729156993147,-500.0,0.00041917,60]
[340384563,1729156993185,-522.82024211,0.00041917,60]
[340384564,1729156993220,-500.0,0.00041917,60]
[340384565,1729156993256,-500.0,0.00041917,60]
[340384566,1729156993291,-500.0,0.00041917,60]
[340384567,1729156993326,-200.55815944,0.00041917,60]
[340384568,1729156993360,-500.0,0.00041917,60]
[340384569,1729156993393,-500.0,0.00041917,60]
[340384570,1729156993429,-346.49663579,0.00041917,60]
[340384571,1729156993463,-500.0,0.00041917,60]
[340384572,1729156993501,-500.0,0.00041917,60]
[340384573,1729156993536,-500.0,0.00041917,60]
[340384574,1729156993571,-500.0,0.00041917,60]
[340384575,1729156993605,-500.0,0.00041917,60]
[340384576,1729156993640,-500.0,0.00041917,60]
[340384577,1729156993675,-500.0,0.00041917,60]
[340384578,1729156993709,-507.62488109,0.00041917,60]
[340384579,1729156993744,-500.0,0.00041917,60]
[340384580,1729156993781,-500.0,0.00041917,60]
[340384581,1729156993820,-500.0,0.00041917,60]
[340384582,1729156993857,-500.0,0.00041917,60]
[340384583,1729156993894,-500.0,0.00041917,60]
[340384584,1729156993930,-252.2324648,0.00041917,60]
[340384585,1729156993968,-973.81,0.00041917,60]
[340384586,1729156994004,-500.0,0.00041917,60]
[340384587,1729156994041,-500.0,0.00041917,60]
[340384588,1729156994079,-514.36562012,0.00041917,60]
[340384589,1729156994116,-515.19528561,0.00041917,60]
[340384590,1729156994154,-500.0,0.00041917,60]
[340384591,1729156994192,-1458.33,0.00041917,60]
[340384592,1729156994229,-500.0,0.00041917,60]
[340384593,1729156994266,-500.0,0.00041917,60]
[340384594,1729156994303,-500.0,0.00041917,60]
[340384595,1729156994343,-762.66,0.00041917,60]
[340384596,1729156994380,-1000.0,0.00041917,120]
[340384597,1729156994418,-1353.67,0.00041917,60]
[340384598,1729156994453,-500.0,0.00041917,60]
[340384599,1729156994490,-500.0,0.00041917,60]
[340384600,1729156994526,-500.0,0.00041917,60]
[340384601,1729156994565,-500.0,0.00041917,60]
[340384602,1729156994603,-650.71,0.00041917,60]
[340384603,1729156994639,-500.0,0.00041917,60]
[340384604,1729156994673,-500.0,0.00041917,60]
[340384605,1729156994707,-500.0,0.00041917,60]
[340384606,1729156994745,-500.0,0.00041917,60]
[340384607,1729156994781,-500.0,0.00041917,60]
[340384608,1729156995009,-500.0,0.00041917,60]
[340384609,1729156995047,-835.54,0.00041917,60]
[340384610,1729156995083,-500.0,0.00041917,60]
[340384611,1729156995117,-1182.57,0.00041917,60]
[340384612,1729156995151,-430.95812673,0.00041917,60]
[340384613,1729156995192,-500.0,0.00041917,60]
[340384614,1729156995228,-500.0,0.00041917,60]
[340384615,1729156995268,-500.0,0.00041917,60]
[340384616,1729156995304,-898.16,0.00041917,60]
[340384617,1729156995342,-500.0,0.00041917,60]
[340384618,1729156995377,-505.37504052,0.00041917,60]
[340384619,1729156995412,-759.22,0.00041917,60]
[340384620,1729156995447,-500.0,0.00041917,60]
[340384621,1729156995480,-182.99882848,0.00041917,60]
[340384622,1729156995516,-500.0,0.00041917,60]
[340384623,1729156995549,-500.0,0.00041917,60]
[340384624,1729156995583,-500.0,0.00041917,60]
[340384625,1729156995618,-500.0,0.00041917,60]
[340384626,1729156995652,-500.0,0.00041917,60]
[340384627,1729156995686,-366.32918264,0.00041917,60]
[340384628,1729156995720,-500.0,0.00041917,60]
[340384629,1729156995756,-500.0,0.00041917,60]
[340384630,1729156995789,-512.12989894,0.00041917,60]
[340384631,1729156995822,-788.25,0.00041917,60]
[340384632,1729156995857,-829.97,0.00041917,120]
[340384633,1729156995892,-512.02143737,0.00041917,60]
[340384634,1729156995927,-500.0,0.00041917,60]
[340384635,1729156995963,-2230.79,0.00041917,60]
[340384636,1729156995997,-500.0,0.00041917,60]
[340384637,1729156996032,-500.0,0.00041917,60]
[340384638,1729156996067,-500.0,0.00041917,60]
[340384639,1729156996106,-511.0627944,0.00041917,60]
[340384640,1729156996140,-513.87544387,0.00041917,60]
[340384641,1729156996177,-500.0,0.00041917,60]
[340384642,1729156996212,-1156.09,0.00041917,60]
[340384643,1729156996254,-500.0,0.00041917,60]
[340384644,1729156996292,-151.52355241,0.00041917,60]
[340384645,1729156996332,-500.0,0.00041917,60]
[340384646,1729156996367,-500.0,0.00041917,60]
[340384647,1729156996401,-512.86,0.00041917,60]
[340384648,1729156996435,-500.0,0.00041917,60]
[340384649,1729156996469,-500.0,0.00041917,60]
[340384650,1729156996504,-1055.28,0.00041917,60]
[340384651,1729156996539,-500.0,0.00041917,60]
[340384652,1729156996574,-861.18,0.00041917,60]
[340384653,1729156996607,-905.29,0.00041917,60]
[340384654,1729156996642,-500.0,0.00041917,60]
[340384655,1729156996676,-500.0,0.00041917,60]
[340384656,1729156996710,-500.0,0.00041917,60]
[340384657,1729156996749,-500.0,0.00041917,60]
[340384658,1729156996782,-593.86,0.00041917,60]
[340384659,1729156996817,-1174.01,0.00041917,60]
[340384660,1729156996854,-522.36,0.00041917,60]
[340384661,1729156996889,-500.0,0.00041917,60]
[340384662,1729156996925,-500.0,0.00041917,60]
[340384663,1729156996959,-2661.39,0.00041917,60]
[340384664,1729156996992,-500.0,0.00041917,60]
[340384665,1729156997027,-500.0,0.00041917,60]
[340384666,1729156997061,-500.0,0.00041917,60]
[340384667,1729156997101,-4800.3,0.00041917,60]
[340384668,1729156997136,-500.0,0.00041917,60]
[340384669,1729156997171,-500.0,0.00041917,60]
[340384670,1729156997205,-500.0,0.00041917,60]
[340384671,1729156997240,-500.0,0.00041917,60]
[340384672,1729156997274,-500.0,0.00041917,60]
[340384673,1729156997308,-955.98,0.00041917,60]
[340384674,1729156997345,-548.64,0.00041917,60]
[340384675,1729156997378,-500.0,0.00041917,60]
[340384676,1729156997412,-517.76729346,0.00041917,60]
[340384677,1729156997445,-5161.34,0.00041917,60]
[340384678,1729156997480,-971.22,0.00041917,60]
[340384679,1729156997514,-500.0,0.00041917,60]
[340384680,1729156997549,-574.46269222,0.00041917,60]
[340384681,1729156997584,-921.13,0.00041917,60]
[340384682,1729156997619,-500.0,0.00041917,60]
[340384683,1729156997653,-507.89290595,0.00041917,60]
[340384684,1729156997688,-1038.67,0.00041917,60]
[340384685,1729156997725,-530.45679213,0.00041917,60]
[340384686,1729156997760,-517.28095482,0.00041917,60]
[340384687,1729156997795,-295.2471583,0.00041917,60]
[340384688,1729156997831,-500.0,0.00041917,60]
[340384689,1729156997867,-1088.09,0.00041917,60]
[340384690,1729156997903,-1122.68,0.00041917,60]
[340384691,1729156997940,-500.0,0.00041917,60]
[340384692,1729156997976,-877.3,0.00041917,60]
[340384693,1729156998009,-2534.2,0.00041917,60]
[340384694,1729156998044,-966.99,0.00041917,60]
[340384695,1729156998085,-500.0,0.00041917,60]
[340384696,1729156998128,-500.0,0.00041917,60]
[340384697,1729156998168,-876.41,0.00041917,60]
[340384698,1729156998206,-500.0,0.00041917,60]
[340384699,1729156998246,-500.0,0.00041917,60]
[340384700,1729156998287,-3258.44,0.00041917,60]
[340384701,1729156998327,-500.0,0.00041917,60]
[340384702,1729156998366,-500.0,0.00041917,60]
[340384703,1729156998404,-500.0,0.00041917,60]
[340384704,1729156998444,-500.0,0.00041917,60]
[340384705,1729156998482,-500.0,0.00041917,60]
[340384706,1729156998521,-67827.9902356,0.00041917,60]
[340384707,1729157006317,-12188.42758857,0.00040684,120]
[340384708,1729157006364,-527.22,0.00041095,60]
[340384709,1729157006402,-589.88,0.00041095,60]
[340384710,1729157006439,-500.0,0.00041095,60]
[340384711,1729157006475,-500.0,0.00041095,60]
[340384712,1729157006510,-500.0,0.00041095,60]
[340384713,1729157006547,-527.22,0.00041369,60]
[340384714,1729157006587,-589.88,0.00041369,60]
[340384715,1729157006628,-500.0,0.00041369,60]
[340384716,1729157006665,-500.0,0.00041369,60]
[340384717,1729157006702,-500.0,0.00041369,60]
[340384718,1729157006741,-527.22,0.00041643,60]
[340384719,1729157006779,-589.88,0.00041643,60]
[340384720,1729157006818,-500.0,0.00041643,60]
[340384721,1729157006855,-500.0,0.00041643,60]
[340384722,1729157006892,-500.0,0.00041643,60]
[340384723,1729157006931,-500.0,0.00041917,60]
[340384724,1729157006967,-500.0,0.00041917,60]
[340384725,1729157007004,-500.0,0.00041917,60]
[340384726,1729157007040,-500.0,0.00041917,60]
[340384727,1729157007080,-500.0,0.00041917,60]
[340384728,1729157007114,-2603.18,0.00041917,60]
[340384729,1729157007148,-500.0,0.00041917,60]
[340384730,1729157007187,-1334.81,0.00041917,60]
[340384731,1729157007225,-351.74201588,0.00041917,60]
[340384732,1729157007261,-988.07,0.00041917,60]
[340384733,1729157007296,-746.44,0.00041917,60]
[340384734,1729157007330,-500.0,0.00041917,60]
[340384735,1729157007365,-500.0,0.00041917,60]
[340384736,1729157007398,-500.0,0.00041917,60]
[340384737,1729157007432,-500.0,0.00041917,60]
[340384738,1729157007467,-782.02,0.00041917,60]
[340384739,1729157007501,-500.0,0.00041917,60]
[340384740,1729157007536,-500.0,0.00041917,60]
[340384741,1729157007570,-343.43797585,0.00041917,60]
[340384742,1729157007606,-630.5224786,0.00041917,60]
[340384743,1729157007640,-500.0,0.00041917,60]
[340384744,1729157007674,-500.0,0.00041917,60]
[340384745,1729157007707,-500.0,0.00041917,60]
[340384746,1729157007742,-500.0,0.00041917,60]
[340384747,1729157007778,-500.0,0.00041917,60]
[340384748,1729157007813,-500.0,0.00041917,60]
[340384749,1729157007852,-500.0,0.00041917,60]
[340384750,1729157007891,-500.0,0.00041917,60]
[340384751,1729157007930,-435.81027881,0.00041917,60]
[340384752,1729157007968,-500.0,0.00041917,60]
[340384753,1729157008007,-500.0,0.00041917,60]
[340384754,1729157008044,-500.0,0.00041917,60]
[340384755,1729157008087,-1159.47,0.00041917,60]
[340384756,1729157008125,-500.0,0.00041917,60]
[340384757,1729157008165,-980.67,0.00041917,60]
[340384758,1729157008203,-862.09,0.00041917,60]
[340384759,1729157008240,-500.0,0.00041917,60]
[340384760,1729157008277,-500.0,0.00041917,60]
[340384761,1729157008314,-581.12,0.00041917,60]
[340384762,1729157008351,-500.0,0.00041917,60]
[340384763,1729157008387,-500.0,0.00041917,60]
[340384764,1729157008423,-500.0,0.00041917,60]
[340384765,1729157008462,-789.83,0.00041917,60]
[340384766,1729157008497,-404.46613627,0.00041917,60]
[340384767,1729157008531,-828.72,0.00041917,60]
[340384768,1729157008568,-500.0,0.00041917,60]
[340384769,1729157008604,-859.58,0.00041917,60]
[340384770,1729157008639,-196.80350031,0.00041917,60]
[340384771,1729157008675,-1003.18,0.00041917,60]
[340384772,1729157008712,-500.0,0.00041917,60]
[340384773,1729157008748,-500.0,0.00041917,60]
[340384774,1729157008786,-500.0,0.00041917,60]
[340384775,1729157008821,-500.0,0.00041917,60]
[340384776,1729157008858,-500.0,0.00041917,60]
[340384777,1729157008895,-500.0,0.00041917,60]
[340384778,1729157008932,-636.11673224,0.00041917,60]
[340384779,1729157008969,-564.50256835,0.00041917,60]
[340384780,1729157009005,-701.04,0.00041917,60]
[340384781,1729157009040,-517.98240914,0.00041917,60]
[340384782,1729157009076,-500.0,0.00041917,60]
[340384783,1729157009113,-500.0,0.00041917,60]
[340384784,1729157009150,-612.81309252,0.00041917,60]
[340384785,1729157009190,-500.0,0.00041917,60]
[340384786,1729157009227,-8355.78,0.00041917,60]
[340384787,1729157009264,-517.27188435,0.00041917,60]
[340384788,1729157009300,-500.0,0.00041917,60]
[340384789,1729157009337,-500.0,0.00041917,60]
[340384790,1729157009374,-1357.32,0.00041917,60]
[340384791,1729157009411,-3000.0,0.00041917,60]
[340384792,1729157009447,-500.0,0.00041917,60]
[340384793,1729157009483,-500.0,0.00041917,60]
[340384794,1729157009521,-500.0,0.00041917,60]
[340384795,1729157009556,-1167.08,0.00041917,60]
[340384796,1729157009593,-500.0,0.00041917,60]
[340384797,1729157009629,-500.0,0.00041917,60]
[340384798,1729157009665,-500.0,0.00041917,60]
[340384799,1729157009702,-500.0,0.00041917,60]
[340384800,1729157009738,-1825.51,0.00041917,60]
[340384801,1729157009774,-500.0,0.00041917,60]
[340384802,1729157009808,-500.0,0.00041917,60]
[340384803,1729157009844,-500.0,0.00041917,60]
[340384804,1729157009881,-1537.2,0.00041917,60]
[340384805,1729157010126,-500.0,0.00041917,60]
[340384806,1729157010171,-635.34,0.00041917,60]
[340384807,1729157010208,-476.19974594,0.00041917,60]
[340384808,1729157010243,-500.0,0.00041917,60]
[340384809,1729157010279,-699.46,0.00041917,60]
[340384810,1729157010315,-500.0,0.00041917,60]
[340384811,1729157010352,-504.08,0.00041917,60]
[340384812,1729157010388,-892.38,0.00041917,60]
[340384813,1729157010424,-958.3,0.00041917,60]
[340384814,1729157010459,-500.0,0.00041917,60]
[340384815,1729157010496,-2166.93,0.00041917,60]
[340384816,1729157010531,-500.0,0.00041917,60]
[340384817,1729157010566,-500.0,0.00041917,60]
[340384818,1729157010603,-500.0,0.00041917,60]
[340384819,1729157010638,-500.0,0.00041917,60]
[340384820,1729157010671,-854.83,0.00041917,60]
[340384821,1729157010706,-954.61,0.00041917,60]
[340384822,1729157010740,-500.0,0.00041917,60]
[340384823,1729157010774,-500.0,0.00041917,60]
[340384824,1729157010808,-500.0,0.00041917,60]
[340384825,1729157010842,-260.59330543,0.00041917,60]
[340384826,1729157010876,-500.0,0.00041917,60]
[340384827,1729157010910,-500.0,0.00041917,60]
[340384828,1729157010945,-461.89835296,0.00041917,60]
[340384829,1729157010980,-955.25,0.00041917,60]
[340384830,1729157011015,-500.0,0.00041917,60]
[340384831,1729157011053,-500.0,0.00041917,60]
[340384832,1729157011091,-500.0,0.00041917,60]
[340384833,1729157011127,-500.0,0.00041917,60]
[340384834,1729157011166,-1247.53,0.00041917,60]
[340384835,1729157011201,-750.89,0.00041917,60]
[340384836,1729157011242,-530.36893673,0.00041917,60]
[340384837,1729157011278,-500.0,0.00041917,60]
[340384838,1729157011313,-500.0,0.00041917,60]
[340384839,1729157011348,-500.0,0.00041917,60]
[340384840,1729157011383,-500.0,0.00041917,60]
[340384841,1729157011417,-828.59,0.00041917,60]
[340384842,1729157011451,-1164.53,0.00041917,60]
[340384843,1729157011486,-507.47578289,0.00041917,60]
[340384844,1729157011519,-588.42,0.00041917,60]
[340384845,1729157011554,-500.0,0.00041917,60]
[340384846,1729157011590,-500.0,0.00041917,60]
[340384847,1729157011625,-500.0,0.00041917,60]
[340384848,1729157011658,-1967.01,0.00041917,60]
[340384849,1729157011692,-500.0,0.00041917,60]
[340384850,1729157011727,-500.0,0.00041917,60]
[340384851,1729157011762,-500.0,0.00041917,60]
[340384852,1729157011797,-943.8,0.00041917,60]
[340384853,1729157011834,-1847.58,0.00041917,60]
[340384854,1729157011871,-1013.16,0.00041917,60]
[340384855,1729157011908,-1379.05,0.00041917,60]
[340384856,1729157011946,-500.0,0.00041917,60]
[340384857,1729157011981,-500.0,0.00041917,60]
[340384858,1729157012015,-12882.76,0.00041917,60]
[340384859,1729157012051,-1143.49,0.00041917,60]
[340384860,1729157012087,-852.68,0.00041917,60]
[340384861,1729157012124,-500.0,0.00041917,60]
[340384862,1729157012162,-2453.69,0.00041917,60]
[340384863,1729157012196,-500.0,0.00041917,60]
[340384864,1729157012230,-1754.82,0.00041917,60]
[340384865,1729157012264,-500.0,0.00041917,60]
[340384866,1729157012298,-500.0,0.00041917,60]
[340384867,1729157012332,-500.0,0.00041917,60]
[340384868,1729157012366,-574.08,0.00041917,60]
[340384869,1729157012400,-378.51775624,0.00041917,60]
[340384870,1729157012435,-16244.07,0.00041917,60]
[340384871,1729157012469,-500.0,0.00041917,60]
[340384872,1729157012502,-500.0,0.00041917,60]
[340384873,1729157012535,-500.0,0.00041917,60]
[340384874,1729157012569,-531.76626768,0.00041917,60]
[340384875,1729157012604,-527.22,0.00041917,60]
[340384876,1729157012637,-589.88,0.00041917,60]
[340384877,1729157012670,-500.0,0.00041917,60]
[340384878,1729157012705,-500.0,0.00041917,60]
[340384879,1729157012739,-500.0,0.00041917,60]
[340384880,1729157012772,-156.666,0.0004197,120]
[340384881,1729157012806,-156.667,0.0004197,120]
[340384882,1729157012840,-156.667,0.0004197,120]
[340384883,1729157012873,-200.0,0.00042,120]
[340384884,1729157012907,-50000.0,0.00042,120]
[340384885,1729157012942,-155.0,0.0004214,120]
[340384886,1729157012977,-500.0,0.00042191,60]
[340384887,1729157013010,-264.54830114,0.00042191,60]
[340384888,1729157013044,-500.0,0.00042191,60]
[340384889,1729157013079,-517.6003177,0.00042191,60]
[340384890,1729157013116,-500.0,0.00042191,60]
[340384891,1729157013151,-508.58040746,0.00042191,60]
[340384892,1729157013188,-500.0,0.00042191,60]
[340384893,1729157013225,-500.0,0.00042191,60]
[340384894,1729157013262,-522.26579545,0.00042191,60]
[340384895,1729157013298,-500.0,0.00042191,60]
[340384896,1729157013334,-500.0,0.00042191,60]
[340384897,1729157013369,-500.0,0.00042191,60]
[340384898,1729157013405,-500.0,0.00042191,60]
[340384899,1729157013439,-915.19,0.00042191,60]
[340384900,1729157013473,-500.0,0.00042191,60]
[340384901,1729157013508,-500.0,0.00042191,60]
[340384902,1729157013543,-730.43,0.00042191,60]
[340384903,1729157013578,-500.0,0.00042191,60]
[340384904,1729157013616,-554.32,0.00042191,60]
[340384905,1729157013651,-500.0,0.00042191,60]
[340384906,1729157013687,-500.0,0.00042191,60]
[340384907,1729157013722,-500.0,0.00042191,60]
[340384908,1729157013759,-545.11756038,0.00042191,60]
[340384909,1729157013983,-500.0,0.00042191,60]
[340384910,1729157014019,-500.0,0.00042191,60]
[340384911,1729157014054,-500.0,0.00042191,60]
[340384912,1729157014094,-1062.75,0.00042191,60]
[340384913,1729157014131,-500.0,0.00042191,60]
[340384914,1729157014171,-500.0,0.00042191,60]
[340384915,1729157014212,-515.48607017,0.00042191,60]
[340384916,1729157014250,-500.0,0.00042191,60]
[340384917,1729157014285,-500.0,0.00042191,60]
[340384918,1729157014322,-500.0,0.00042191,60]
[340384919,1729157014359,-500.0,0.00042191,60]
[340384920,1729157014397,-500.0,0.00042191,60]
[340384921,1729157014433,-500.0,0.00042191,60]
[340384922,1729157014470,-506.65583932,0.00042191,60]
[340384923,1729157014507,-852.83,0.00042191,60]
[340384924,1729157014546,-500.0,0.00042191,60]
[340384925,1729157014581,-511.25759708,0.00042191,60]
[340384926,1729157014616,-1009.02,0.00042191,60]
[340384927,1729157014651,-500.0,0.00042191,60]
[340384928,1729157014686,-500.0,0.00042191,60]
[340384929,1729157014722,-813.74,0.00042191,60]
[340384930,1729157014756,-500.0,0.00042191,60]
[340384931,1729157014790,-500.0,0.00042191,60]
[340384932,1729157014824,-500.0,0.00042191,60]
[340384933,1729157014861,-531.43363998,0.00042191,60]
[340384934,1729157014897,-500.0,0.00042191,60]
[340384935,1729157014933,-500.0,0.00042191,60]
[340384936,1729157014968,-512.42239614,0.00042191,60]